bitfinex-derivatives/quotes_ETHF0:USTF0_20250420
["timestamp","ask_amount","ask_price","bid_price","bid_amount"]
[1745167448199,5.30449,1579.5,1579.4,1.7082]
[1745167448797,5.30449,1579.5,1579.4,2.97447]
[1745167448993,4.0383,1579.5,1579.4,1.7082]
[1745167449197,3.2078,1579.5,1579.4,2.97447]
[1745167449897,4.47399,1579.5,1579.4,2.97447]
[1745167450097,4.47399,1579.5,1579.4,5.20247]
[1745167450098,3.2078,1579.5,1579.4,5.20247]
[1745167450298,4.47399,1579.5,1579.4,5.20247]
[1745167451003,3.2078,1579.5,1579.4,5.20247]
[1745167451301,5.33785,1579.7,1579.4,3.9362]
[1745167451599,3.2078,1579.7,1579.6,1.26611]
[1745167452088,3.2078,1579.7,1579.6,2.98521]
[1745167452599,4.47383,1579.7,1579.6,2.98521]
[1745167461513,1.26603,1579.7,1579.6,2.98521]
[1745167461711,1.26603,1579.7,1579.6,1.7191]
[1745167461910,2.98243,1579.7,1579.6,1.7191]
[1745167462413,2.98243,1579.7,1579.6,2.98521]
[1745167462715,2.98243,1579.7,1579.6,1.7191]
[1745167464109,2.98243,1579.7,1579.6,2.98521]
[1745167464413,2.98243,1579.7,1579.6,1.7191]
[1745167464818,1.26603,1579.7,1579.6,1.7191]
[1745167466917,2.97443,1579.7,1579.6,1.7191]
[1745167467713,1.26611,1579.6,1579.5,4.092]
[1745167468016,4.68941,1579.6,1579.5,4.092]
[1745167468716,1.26619,1579.5,1579.4,3.2078]
[1745167468903,6.18239,1579.5,1579.4,4.091]
[1745167469712,1.26643,1579.2,1579.1,5.884]
[1745167469907,1.26643,1579.2,1579.1,9.974]
[1745167470311,2.95263,1579.2,1579.1,11.7039]
[1745167471315,2.95263,1579.2,1579.1,20.11131647]
[1745167472519,2.95263,1579.2,1579.1,18.38141647]
[1745167474122,2.95263,1579.2,1579.1,8.40741647]
[1745167475717,7.95263,1579.2,1579.1,8.40741647]
[1745167475917,2.95263,1579.2,1579.1,8.40741647]
[1745167476414,2.95263,1579.2,1579.0,16.66691906]
[1745167476415,1.26651,1579.1,1579.0,4.09949638]
[1745167476615,6.15511,1579.1,1579.0,4.09949638]
[1745167485224,6.15511,1579.1,1579.0,4.95469638]
[1745167485828,2.94731,1579.1,1579.0,4.95469638]
[1745167486823,3.76771,1579.1,1579.0,4.95469638]
[1745167487629,3.76771,1579.1,1579.0,4.09949638]
[1745167495442,6.97551,1579.1,1579.0,4.09949638]
[1745167497240,6.97551,1579.1,1579.0,0.00949638]
[1745167499034,6.97551,1579.1,1579.0,0.89409638]
[1745167499236,6.97551,1579.1,1579.0,1.75369638]
[1745167499237,5.29471,1579.1,1579.0,1.75369638]
[1745167500446,3.2078,1579.1,1579.0,1.75369638]
[1745167500636,12.6848,1579.3,1579.1,1.26651]
[1745167500841,1.26643,1579.2,1579.1,5.774]
[1745167501248,4.47417,1579.3,1579.1,7.04046]
[1745167501439,4.47417,1579.3,1579.2,1.684]
[1745167501839,3.2078,1579.3,1579.2,2.95043]
[1745167502342,3.2078,1579.3,1579.2,5.17843]
[1745167502545,5.49765341,1579.5,1579.3,1.26629]
[1745167502745,5.49765341,1579.5,1579.4,6.5749]
[1745167502942,8.70545341,1579.5,1579.4,6.5749]
[1745167503849,1.26635,1579.3,1579.2,4.09]
[1745167504648,1.26635,1579.3,1579.2,5.7667]
[1745167505950,1.26635,1579.3,1579.2,7.03313]
[1745167506154,1.26633,1579.4,1579.2,7.03313]
[1745167506451,1.26633,1579.4,1579.3,2.5635]
[1745167509940,3.01703,1579.4,1579.3,2.5635]
[1745167511153,4.0152,1579.5,1579.3,2.5635]
[1745167511452,4.0152,1579.5,1579.4,1.7555]
[1745167511637,5.28139,1579.5,1579.4,1.7555]
[1745167512755,2.07359,1579.5,1579.4,1.7555]
[1745167513054,5.28139,1579.5,1579.4,1.7555]
[1745167516856,4.47399,1579.5,1579.4,1.7555]
[1745167518755,6.16859,1579.5,1579.4,1.7555]
[1745167523757,2.96079,1579.5,1579.4,1.7555]
[1745167523951,6.16859,1579.5,1579.4,1.7555]
[1745167524252,4.47399,1579.5,1579.4,3.02177]
[1745167524461,4.47399,1579.5,1579.4,1.7555]
[1745167525061,4.47399,1579.5,1579.4,3.02177]
[1745167527766,4.47399,1579.5,1579.4,1.7555]
[1745167528760,5.29109,1579.5,1579.4,3.02177]
[1745167528963,5.29109,1579.5,1579.4,1.7555]
[1745167530963,2.08329,1579.5,1579.4,1.7555]
[1745167531164,5.29109,1579.5,1579.4,3.02177]
[1745167535165,5.29109,1579.5,1579.4,1.7555]
[1745167535561,6.13129,1579.5,1579.4,1.7555]
[1745167537765,6.13129,1579.5,1579.4,3.02177]
[1745167537966,6.13129,1579.5,1579.4,1.7555]
[1745167538167,6.13129,1579.5,1579.4,5.8435]
[1745167539168,6.13129,1579.5,1579.4,7.10977]
[1745167540463,3.2078,1579.5,1579.4,7.10977]
[1745167540867,4.47399,1579.5,1579.4,7.10977]
[1745167541568,1.26619,1579.5,1579.4,7.10977]
[1745167541866,4.47399,1579.5,1579.4,7.10977]
[1745167542365,4.47399,1579.5,1579.4,4.088]
[1745167542559,5.34359,1579.5,1579.4,4.088]
[1745167549064,7.12159,1579.5,1579.4,4.088]
[1745167550271,7.12159,1579.5,1579.4,5.7936]
[1745167551677,5.34359,1579.5,1579.4,5.7936]
[1745167552073,7.01889,1579.5,1579.4,5.7936]
[1745167552375,6.95547387,1579.5,1579.4,5.7936]
[1745167553269,11.18688728,1579.5,1579.4,5.7936]
[1745167561381,11.18688728,1579.5,1579.4,4.088]
[1745167562183,5.7527,1579.5,1579.3,5.35435]
[1745167562374,1.26634,1579.4,1579.3,5.8572]
[1745167562577,1.26634,1579.4,1579.3,4.088]
[1745167567988,1.26634,1579.4,1579.3,5.35435]
[1745167568983,1.26634,1579.4,1579.3,4.088]
[1745167569183,8.70544341,1579.5,1579.3,4.088]
[1745167569483,8.70544341,1579.5,1579.4,0.8212]
[1745167569679,8.70544341,1579.5,1579.4,1.654]
[1745167572189,8.70544341,1579.5,1579.4,2.92027]
[1745167572391,8.70544341,1579.5,1579.4,1.654]
[1745167572987,8.70544341,1579.5,1579.4,3.2729]
[1745167573486,8.70544341,1579.5,1579.4,4.53917]
[1745167573688,7.43921341,1579.5,1579.4,4.53917]
[1745167574384,3.2078,1579.5,1579.4,4.53917]
[1745167575187,3.2078,1579.5,1579.4,6.76717]
[1745167576687,4.23141341,1579.6,1579.5,1.26619]
[1745167576890,5.49752341,1579.6,1579.5,2.90919]
[1745167577786,8.27861341,1579.7,1579.5,2.90919]
[1745167577983,9.54464341,1579.7,1579.6,1.643]
[1745167578186,9.54464341,1579.7,1579.6,2.5202]
[1745167578385,11.25634341,1579.7,1579.6,2.5202]
[1745167584388,11.25634341,1579.7,1579.6,1.643]
[1745167584592,1.26619,1579.5,1579.3,4.088]
[1745167584797,1.26619,1579.5,1579.4,1.6682]
[1745167586188,1.26619,1579.5,1579.4,2.93447]
[1745167586390,4.47399,1579.5,1579.4,1.6682]
[1745167586585,6.17049,1579.5,1579.4,1.6682]
[1745167589794,2.96269,1579.5,1579.4,1.6682]
[1745167590996,2.10486,1579.6,1579.4,1.6682]
[1745167591306,1.26616,1579.6,1579.5,1.26619]
[1745167591498,1.26616,1579.6,1579.5,2.08229]
[1745167592201,1.26616,1579.6,1579.5,0.8161]
[1745167592702,1.26616,1579.6,1579.5,2.5212]
[1745167594999,1.26616,1579.6,1579.5,3.78739]
[1745167595199,1.26616,1579.6,1579.5,2.5212]
[1745167598001,1.26616,1579.6,1579.5,6.6062]
[1745167598210,1.26616,1579.6,1579.5,8.74369]
[1745167598405,1.26616,1579.6,1579.5,7.4775]
[1745167600610,3.03466,1579.6,1579.5,7.4775]
[1745167607509,1.26616,1579.6,1579.5,5.7901]
[1745167607711,1.26616,1579.6,1579.5,7.4982]
[1745167608217,1.26616,1579.6,1579.5,8.76439]
[1745167608514,1.26616,1579.6,1579.5,7.4982]
[1745167611715,2.95336,1579.6,1579.5,7.4982]
[1745167613114,1.26616,1579.6,1579.5,7.4982]
[1745167613315,7.43921341,1579.7,1579.6,1.26611]
[1745167613619,8.70524341,1579.7,1579.6,2.99201]
[1745167614327,8.70524341,1579.7,1579.6,1.7259]
[1745167615914,8.70524341,1579.7,1579.6,2.99201]
[1745167616520,8.70524341,1579.7,1579.6,1.7259]
[1745167617430,5.49744341,1579.7,1579.6,2.99201]
[1745167617723,5.49744341,1579.7,1579.6,1.7259]
[1745167618822,5.49744341,1579.7,1579.6,2.99201]
[1745167619727,4.23141341,1579.7,1579.6,2.99201]
[1745167620728,5.49744341,1579.7,1579.6,2.99201]
[1745167621520,4.23141341,1579.7,1579.6,2.99201]
[1745167621722,5.49744341,1579.7,1579.6,2.99201]
[1745167622429,4.23141341,1579.7,1579.6,2.99201]
[1745167622630,5.49744341,1579.7,1579.6,2.99201]
[1745167623129,4.23141341,1579.7,1579.6,2.99201]
[1745167624033,6.15802,1579.8,1579.7,1.26603]
[1745167624232,6.15802,1579.8,1579.7,2.5076]
[1745167625132,6.15802,1579.8,1579.7,3.77363]
[1745167626132,3.2078,1579.8,1579.7,3.77363]
[1745167626319,4.47375,1579.8,1579.7,3.77363]
[1745167629733,4.47375,1579.8,1579.7,2.5076]
[1745167629924,6.25115,1579.8,1579.7,3.77363]
[1745167630631,6.25115,1579.8,1579.7,1.6739]
[1745167630833,4.9852,1579.8,1579.5,11.686]
[1745167631027,4.67736,1579.7,1579.6,3.04728]
[1745167633330,1.26611,1579.6,1579.5,5.884]
[1745167633537,1.26611,1579.6,1579.5,9.967]
[1745167633538,6.11901,1579.6,1579.5,9.967]
[1745167635738,6.11901,1579.6,1579.5,4.083]
[1745167653564,6.11901,1579.6,1579.5,6.5371]
[1745167662065,2.91121,1579.6,1579.5,6.5371]
[1745167662266,6.11901,1579.6,1579.5,6.5371]
[1745167663766,2.91121,1579.6,1579.5,6.5371]
[1745167663976,6.11901,1579.6,1579.5,6.5371]
[1745167666375,2.91121,1579.6,1579.5,6.5371]
[1745167666578,6.11901,1579.6,1579.5,6.5371]
[1745167671180,2.91121,1579.6,1579.5,6.5371]
[1745167671380,6.11901,1579.6,1579.5,6.5371]
[1745167672977,6.11901,1579.6,1579.5,2.4541]
[1745167677292,4.47391,1579.6,1579.5,2.4541]
[1745167677483,4.47391,1579.6,1579.5,3.2949]
[1745167686592,1.26611,1579.6,1579.5,3.2949]
[1745167686791,4.47391,1579.6,1579.5,3.2949]
[1745167688696,4.47391,1579.6,1579.5,4.56109]
[1745167688886,4.47391,1579.6,1579.5,3.2949]
[1745167691186,1.26611,1579.6,1579.5,3.2949]
[1745167691395,4.23141341,1579.7,1579.5,3.2949]
[1745167691691,5.49744341,1579.7,1579.6,2.87891]
[1745167696002,5.49744341,1579.7,1579.6,1.6128]
[1745167696305,5.49744341,1579.7,1579.6,2.87891]
[1745167697103,1.26603,1579.7,1579.6,2.87891]
[1745167697303,1.26603,1579.7,1579.6,1.6128]
[1745167697494,4.69633,1579.7,1579.6,1.6128]
[1745167698300,2.96313,1579.7,1579.6,1.6128]
[1745167698495,2.96313,1579.7,1579.6,2.87891]
[1745167699003,2.96313,1579.7,1579.6,1.6128]
[1745167699901,2.96313,1579.7,1579.6,2.87891]
[1745167702713,2.96313,1579.7,1579.6,1.6128]
[1745167702907,2.96313,1579.7,1579.6,2.87891]
[1745167703096,4.74593,1579.7,1579.6,2.87891]
[1745167704511,4.74593,1579.7,1579.6,1.6128]
[1745167707720,4.74593,1579.7,1579.6,2.87891]
[1745167708013,4.74593,1579.7,1579.6,1.6128]
[1745167708714,1.26619,1579.5,1579.4,8.40741647]
[1745167708905,1.26619,1579.5,1579.4,4.08]
[1745167709301,4.66669,1579.5,1579.4,4.08]
[1745167714111,4.66669,1579.5,1579.4,5.8325]
[1745167719817,4.66669,1579.5,1579.4,7.09877]
[1745167720015,2.96279,1579.5,1579.4,6.6903]
[1745167720613,4.69739,1579.5,1579.4,6.6903]
[1745167738333,2.96279,1579.5,1579.4,6.6903]
[1745167738536,2.96279,1579.5,1579.4,7.95657]
[1745167739335,2.96279,1579.5,1579.4,6.6903]
[1745167742238,2.96279,1579.5,1579.4,7.95657]
[1745167742437,1.26619,1579.5,1579.4,6.6903]
[1745167743133,1.26619,1579.5,1579.4,7.95657]
[1745167744234,1.26619,1579.5,1579.4,6.6903]
[1745167749534,2.14219,1579.5,1579.4,6.6903]
[1745167750343,5.34999,1579.5,1579.4,5.8325]
[1745167750640,6.23829,1579.5,1579.4,5.8325]
[1745167757349,10.46970341,1579.5,1579.4,5.8325]
[1745167758151,8.70540341,1579.5,1579.4,5.8325]
[1745167760461,8.70540341,1579.5,1579.4,7.09877]
[1745167760646,5.49755341,1579.6,1579.5,1.26619]
[1745167760953,4.23141341,1579.6,1579.5,4.58659]
[1745167762665,5.49752341,1579.6,1579.5,4.58659]
[1745167763159,4.23141341,1579.6,1579.5,4.58659]
[1745167764047,4.4739,1579.7,1579.5,4.58659]
[1745167764247,4.4739,1579.7,1579.6,1.7238]
[1745167764546,4.4739,1579.7,1579.6,2.98991]
[1745167766655,4.4739,1579.7,1579.6,1.7238]
[1745167767456,4.4739,1579.7,1579.6,2.98991]
[1745167767853,7.43921341,1579.9,1579.8,1.26595]
[1745167768154,4.23141341,1579.9,1579.8,5.34295]
[1745167768548,4.23141341,1579.9,1579.8,7.00255]
[1745167769154,4.23141341,1579.9,1579.8,12.00255]
[1745167769958,4.23141341,1579.9,1579.8,7.00255]
[1745167770158,5.49728341,1579.9,1579.8,7.00255]
[1745167770961,4.23141341,1579.9,1579.8,7.00255]
[1745167772360,4.57695,1580.0,1579.8,7.00255]
[1745167772562,4.57695,1580.0,1579.9,1.6451]
[1745167772768,1.26585,1580.0,1579.9,3.79377]
[1745167773059,1.26585,1580.0,1579.9,3.3488]
[1745167774966,2.94055,1580.0,1579.9,3.3488]
[1745167776262,2.94055,1580.0,1579.9,4.61467]
[1745167776457,1.6747,1580.0,1579.9,4.61467]
[1745167776658,2.93027,1580.1,1579.9,4.61467]
[1745167776859,4.60497,1580.1,1580.0,1.6688]
[1745167780266,1.26577,1580.1,1580.0,1.6688]
[1745167782075,1.26577,1580.1,1580.0,2.93459]
[1745167782770,4.9311,1580.2,1580.1,1.26571]
[1745167783070,3.2078,1580.2,1580.1,8.74281]
[1745167785967,4.47339,1580.3,1580.2,1.26563]
[1745167786170,3.81837,1580.4,1580.3,1.26555]
[1745167786475,3.81837,1580.4,1580.3,0.8682]
[1745167786867,2.10297,1580.4,1580.3,2.5197]
[1745167787269,2.10297,1580.4,1580.3,3.78525]
[1745167788273,2.10297,1580.4,1580.3,2.5197]
[1745167789674,3.82657,1580.4,1580.3,2.5197]
[1745167789876,1.26562,1580.3,1580.1,9.43525]
[1745167790065,1.26562,1580.3,1580.2,2.90273]
[1745167790376,2.98922,1580.3,1580.2,1.6371]
[1745167790767,2.98922,1580.3,1580.2,2.90273]
[1745167791366,1.26562,1580.3,1580.2,2.90273]
[1745167792872,3.00642,1580.3,1580.2,2.90273]
[1745167793586,3.00642,1580.3,1580.2,1.6371]
[1745167794782,3.00642,1580.3,1580.2,2.90273]
[1745167795179,1.26555,1580.3,1580.2,2.90269]
[1745167795378,1.26555,1580.3,1580.2,1.6371]
[1745167795783,2.93895,1580.3,1580.2,1.6371]
[1745167796078,1.26555,1580.3,1580.2,2.90273]
[1745167796783,1.26555,1580.3,1580.2,1.6371]
[1745167796983,3.77775,1580.3,1580.2,1.6371]
[1745167797282,3.77775,1580.3,1580.2,2.90273]
[1745167797487,1.26555,1580.3,1580.2,2.90273]
[1745167798070,1.26555,1580.3,1580.2,1.6371]
[1745167798974,1.26555,1580.3,1580.2,2.90273]
[1745167799692,1.26555,1580.3,1580.2,1.6371]
[1745167799988,1.26555,1580.3,1580.2,2.90273]
[1745167800284,1.26555,1580.3,1580.2,1.6371]
[1745167801481,1.26555,1580.3,1580.2,2.90273]
[1745167803588,1.26555,1580.3,1580.2,1.6371]
[1745167804788,2.97105,1580.3,1580.2,1.6371]
[1745167804984,1.26563,1580.2,1580.1,10.24865]
[1745167805191,4.65213,1580.2,1580.1,8.981]
[1745167805593,4.65213,1580.2,1580.1,10.24671]
[1745167806280,4.65213,1580.2,1580.1,11.06971]
[1745167806994,3.3865,1580.2,1580.1,11.06971]
[1745167807194,1.681,1580.2,1580.1,11.06971]
[1745167807395,1.681,1580.2,1580.1,11.91401]
[1745167808895,2.94663,1580.2,1580.1,11.91401]
[1745167811598,2.94663,1580.2,1580.1,3.2078]
[1745167811788,6.15443,1580.2,1580.1,4.072]
[1745167817399,2.94663,1580.2,1580.1,4.072]
[1745167817699,6.15443,1580.2,1580.1,4.072]
[1745167818801,2.94663,1580.2,1580.1,4.072]
[1745167819003,2.94663,1580.2,1580.1,5.7723]
[1745167822105,2.94663,1580.2,1580.1,1.7003]
[1745167829999,1.26563,1580.2,1580.1,1.7003]
[1745167830200,1.26563,1580.2,1580.1,2.5311]
[1745167835609,1.26563,1580.2,1580.1,6.6031]
[1745167838719,1.26563,1580.2,1580.1,7.86881]
[1745167838910,1.26563,1580.2,1580.1,6.6031]
[1745167839306,1.26563,1580.2,1580.1,5.7723]
[1745167839519,2.99713,1580.2,1580.1,5.7723]
[1745167841225,1.26563,1580.2,1580.1,5.7723]
[1745167843026,4.47343,1580.2,1580.1,5.7723]
[1745167843327,6.15843,1580.2,1580.1,5.7723]
[1745167843525,6.15843,1580.2,1580.1,1.7003]
[1745167853355,1.26571,1580.1,1580.0,1.6595]
[1745167853636,4.63821,1580.1,1580.0,1.6401]
[1745167853842,1.26579,1580.0,1579.9,4.07]
[1745167854142,1.26587,1579.9,1579.8,10.86261285]
[1745167854340,2.98647,1579.9,1579.8,10.86261285]
[1745167854540,4.63837,1579.9,1579.8,10.86261285]
[1745167855943,1.26587,1579.9,1579.8,10.86261285]
[1745167856744,1.26587,1579.9,1579.8,2.45519638]
[1745167861139,1.26587,1579.9,1579.8,1.64959638]
[1745167861336,3.88837,1579.9,1579.8,1.64959638]
[1745167862244,3.88837,1579.9,1579.8,2.52659638]
[1745167862746,2.14557,1579.9,1579.8,2.52659638]
[1745167864745,1.26587,1579.9,1579.8,2.52659638]
[1745167866952,4.47365,1580.0,1579.8,2.52659638]
[1745167867148,4.47365,1580.0,1579.9,1.7627]
[1745167867747,4.47365,1580.0,1579.9,3.02857]
[1745167868144,4.47365,1580.0,1579.9,5.8337]
[1745167871952,4.47365,1580.0,1579.9,6.6439]
[1745167873438,6.18515,1580.0,1579.9,6.6439]
[1745167874851,4.47365,1580.0,1579.9,6.6439]
[1745167875650,3.2078,1580.0,1579.9,7.90977]
[1745167875953,8.70491341,1580.2,1579.9,6.6439]
[1745167876150,8.70491341,1580.2,1580.0,3.74803]
[1745167876347,8.70491341,1580.2,1580.1,3.72381]
[1745167876754,7.43921341,1580.2,1580.1,3.72381]
[1745167876952,8.70484341,1580.2,1580.1,3.72381]
[1745167878546,8.70484341,1580.2,1580.1,2.4581]
[1745167878947,8.70484341,1580.2,1580.1,3.72381]
[1745167879355,8.70484341,1580.2,1580.1,2.4581]
[1745167879660,5.49704341,1580.2,1580.1,2.4581]
[1745167881059,1.26571,1580.1,1580.0,0.8349]
[1745167881261,3.78251,1580.1,1580.0,2.4915]
[1745167881961,3.78251,1580.1,1580.0,3.75729]
[1745167882758,2.10101,1580.1,1580.0,3.75729]
[1745167882958,1.26571,1580.1,1580.0,3.75729]
[1745167885058,4.23141341,1580.2,1580.0,2.4915]
[1745167885355,5.49704341,1580.2,1580.1,1.6776]
[1745167885562,7.25064341,1580.2,1580.1,1.6776]
[1745167888268,4.23141341,1580.2,1580.0,0.8349]
[1745167888456,4.23141341,1580.2,1580.1,1.6502]
[1745167889966,4.0531,1580.3,1580.1,1.6502]
[1745167890173,1.26569,1580.2,1580.1,2.91591]
[1745167890467,1.26569,1580.2,1580.1,6.98491]
[1745167892067,1.26569,1580.2,1580.1,5.7192]
[1745167893671,1.26569,1580.2,1580.1,6.98491]
[1745167894977,1.26569,1580.2,1580.1,5.7192]
[1745167897078,1.26569,1580.2,1580.1,6.98491]
[1745167897370,1.26569,1580.2,1580.1,5.7192]
[1745167897566,1.26569,1580.2,1580.1,7.85311]
[1745167898182,1.26569,1580.2,1580.1,6.5874]
[1745167899067,1.26569,1580.2,1580.1,7.85311]
[1745167903582,1.26569,1580.2,1580.1,6.5874]
[1745167904079,1.26569,1580.2,1580.1,7.85311]
[1745167904981,1.26569,1580.2,1580.1,6.5854]
[1745167906272,2.90509,1580.2,1580.1,6.5854]
[1745167910381,2.90509,1580.2,1580.1,7.85111]
[1745167910582,2.90509,1580.2,1580.1,6.5854]
[1745167912583,1.26569,1580.2,1580.1,6.5854]
[1745167917888,1.26569,1580.2,1580.1,5.7172]
[1745167918085,1.26587,1579.9,1579.8,20.98674951]
[1745167918290,1.26587,1579.9,1579.8,25.05374951]
[1745167918482,3.74481,1580.0,1579.8,27.64744951]
[1745167918683,3.74481,1580.0,1579.9,2.5805]
[1745167925693,3.74481,1580.0,1579.9,3.84637]
[1745167925892,3.74481,1580.0,1579.9,2.5805]
[1745167927397,3.74481,1580.0,1579.9,3.84637]
[1745167927792,2.08191,1580.0,1579.9,3.84637]
[1745167928495,1.26579,1580.0,1579.9,2.5805]
[1745167928697,1.26579,1580.0,1579.9,3.84633]
[1745167934501,5.728,1580.1,1579.9,2.5805]
[1745167934700,6.99371,1580.1,1580.0,1.7631]
[1745167936702,6.99371,1580.1,1580.0,5.8291]
[1745167941603,5.32661,1580.1,1580.0,5.8291]
[1745167941807,5.32661,1580.1,1580.0,6.6997]
[1745167942602,5.32661,1580.1,1580.0,7.96549]
[1745167942807,4.47351,1580.1,1580.0,7.96549]
[1745167943007,1.26571,1580.1,1580.0,7.96549]
[1745167944507,7.69191341,1580.2,1580.0,7.96549]
[1745167944803,4.23141341,1580.2,1580.1,3.78471]
[1745167945199,4.23141341,1580.2,1580.1,8.78471]
[1745167946108,4.23141341,1580.2,1580.1,3.78471]
[1745167948607,11.30592078,1580.4,1580.3,1.26555]
[1745167948608,2.96308,1580.4,1580.3,1.26555]
[1745167948809,2.96308,1580.4,1580.3,5.33155]
[1745167951112,2.96308,1580.4,1580.3,6.99465]
[1745167951410,4.9703,1580.5,1580.3,6.99465]
[1745167951411,4.9703,1580.5,1580.4,1.26547]
[1745167951601,4.9703,1580.5,1580.4,3.81647]
[1745167953113,6.7158,1580.5,1580.4,3.81647]
[1745167954118,6.23569,1580.5,1580.4,3.81647]
[1745167954618,6.23569,1580.5,1580.4,2.551]
[1745167954817,6.23569,1580.5,1580.4,3.81647]
[1745167962525,6.23569,1580.5,1580.4,4.063]
[1745167962925,7.93079,1580.5,1580.4,4.063]
[1745167963225,6.6654,1580.5,1580.4,5.32847]
[1745167963425,7.93079,1580.5,1580.4,4.063]
[1745167964425,7.93079,1580.5,1580.4,5.32847]
[1745167964724,7.93079,1580.5,1580.4,4.063]
[1745167965320,7.93079,1580.5,1580.4,5.32847]
[1745167965625,3.2078,1580.5,1580.4,7.06577]
[1745167967124,1.6766,1580.6,1580.5,1.26539]
[1745167967325,1.6766,1580.6,1580.5,3.81189]
[1745167967925,2.94191,1580.6,1580.5,2.5465]
[1745167969322,1.6766,1580.6,1580.5,3.81189]
[1745167969826,1.6766,1580.6,1580.5,4.65659]
[1745167970026,6.1874,1580.7,1580.5,3.3912]
[1745167970227,6.1874,1580.7,1580.6,1.6092]
[1745167970934,4.9221,1580.7,1580.6,2.87451]
[1745167971528,6.18733,1580.7,1580.6,2.87451]
[1745167971730,4.9221,1580.7,1580.6,2.87451]
[1745167973329,1.6317,1580.8,1580.7,1.26523]
[1745167973628,1.6317,1580.8,1580.7,7.09253]
[1745167974628,2.89685,1580.8,1580.7,5.8273]
[1745167975123,2.89685,1580.8,1580.7,7.09253]
[1745167975327,2.89685,1580.8,1580.7,5.8273]
[1745167975729,1.6317,1580.8,1580.7,7.09253]
[1745167976521,1.26515,1580.8,1580.7,7.09253]
[1745167977214,6.11013,1580.9,1580.7,7.09253]
[1745167977420,6.11013,1580.9,1580.8,1.7802]
[1745167979820,6.11013,1580.9,1580.8,3.86795]
[1745167980126,1.26499,1581.0,1580.9,1.26502]
[1745167980319,1.26499,1581.0,1580.9,2.5402]
[1745167980915,2.09689,1581.0,1580.9,2.5402]
[1745167981119,3.80579,1581.0,1580.9,2.5402]
[1745167984334,3.80579,1581.0,1580.9,1.6677]
[1745167985132,3.80579,1581.0,1580.9,2.93277]
[1745167985427,0.8796,1581.1,1581.0,1.26499]
[1745167985732,2.14451,1581.1,1581.0,6.6731]
[1745167986930,3.75591,1581.1,1581.0,6.6731]
[1745167987738,3.75591,1581.1,1581.0,7.93809]
[1745167987934,3.75591,1581.1,1581.0,6.6731]
[1745167989543,13.42321341,1581.5,1581.0,9.83552]
[1745167989544,7.43921341,1581.5,1581.0,9.83552]
[1745167989738,7.99612341,1581.5,1581.4,1.26467]
[1745167989939,1.26467,1581.4,1581.3,5.32673]
[1745167990141,2.88727,1581.4,1581.3,7.04943]
[1745167990336,1.26467,1581.4,1581.3,7.04943]
[1745167990531,1.26467,1581.4,1581.3,5.7847]
[1745167990727,2.11837,1581.4,1581.3,4.062]
[1745167991038,4.63147,1581.4,1581.3,4.062]
[1745167991234,4.63147,1581.4,1581.3,5.7019]
[1745167991839,4.63147,1581.4,1581.3,6.96665]
[1745167992141,4.63147,1581.4,1581.3,5.7019]
[1745167992539,4.63147,1581.4,1581.2,4.47258]
[1745167992540,1.26475,1581.3,1581.2,3.2078]
[1745167992739,2.92245,1581.3,1581.2,7.2688]
[1745167993438,2.92245,1581.3,1581.2,8.9087]
[1745167993940,1.6577,1581.3,1581.2,10.17353]
[1745167996535,2.92245,1581.3,1581.2,10.17353]
[1745167999140,9.8655,1581.3,1580.8,3.2078]
[1745167999340,9.8655,1581.3,1580.9,4.06]
[1745167999341,1.26499,1581.0,1580.9,4.06]
[1745167999750,4.70079,1581.0,1580.9,4.06]
[1745168002445,3.4358,1581.0,1580.9,5.32507]
[1745168002638,4.70079,1581.0,1580.9,5.7095]
[1745168004447,4.70079,1581.0,1580.9,4.06]
[1745168006344,1.26507,1580.9,1580.8,4.07049638]
[1745168006543,6.19117,1580.9,1580.8,4.07049638]
[1745168006751,11.19117,1580.9,1580.8,0.00949638]
[1745168006951,13.19117,1580.9,1580.8,0.00949638]
[1745168007453,1.26539,1580.5,1580.4,4.061]
[1745168008350,2.98369,1580.5,1580.4,4.061]
[1745168008551,1.26547,1580.4,1580.3,101.3395]
[1745168008848,2.98377,1580.4,1580.3,105.4005]
[1745168009047,2.98377,1580.4,1580.3,3.2078]
[1745168009349,1.26555,1580.3,1580.2,8.39090125]
[1745168009550,4.71255,1580.3,1580.2,8.39090125]
[1745168011750,4.71255,1580.3,1580.2,10.12040125]
[1745168012157,4.71255,1580.3,1580.2,1.7295]
[1745168013347,1.26563,1580.2,1580.1,1.7562]
[1745168013548,2.94983,1580.2,1580.1,1.6374]
[1745168014659,1.26579,1580.0,1579.9,8.9048]
[1745168015752,2.95946638,1580.1,1579.9,10.17064]
[1745168015958,1.27526638,1580.1,1580.0,1.7185]
[1745168018463,1.27520638,1580.1,1580.0,1.7185]
[1745168024353,1.27520638,1580.1,1580.0,2.98429]
[1745168024555,1.27520638,1580.1,1580.0,1.7185]
[1745168025163,1.27520638,1580.1,1580.0,2.98429]
[1745168025766,1.27520638,1580.1,1580.0,1.7185]
[1745168029971,1.27520638,1580.1,1580.0,2.98429]
[1745168030269,1.27520638,1580.1,1580.0,1.7185]
[1745168032770,1.27520638,1580.1,1580.0,2.98429]
[1745168032957,1.27520638,1580.1,1580.0,1.7185]
[1745168038764,1.27520638,1580.1,1580.0,2.98429]
[1745168038974,0.00949638,1580.1,1580.0,2.98429]
[1745168039277,1.27520638,1580.1,1580.0,5.21229]
[1745168039475,0.00949638,1580.1,1580.0,5.21229]
[1745168040679,0.00949638,1580.1,1580.0,9.27429]